bitfinex-derivatives/quotes_SOLF0:USTF0_20240906
["timestamp","ask_amount","ask_price","bid_price","bid_amount"]
[1725610013596,4.1819597,128.39,128.38,0.05117828]
[1725610013908,8.01602072,128.39,128.38,0.05117828]
[1725610014402,4.12062072,128.39,128.29,1.4303]
[1725610014609,0.2865597,128.38,128.31,3.8977]
[1725610014800,0.2865597,128.38,128.29,34.1907]
[1725610015200,3.8969,128.34,128.3,3.8979]
[1725610015398,3.8969,128.34,128.31,0.0558046]
[1725610015605,3.8967,128.35,128.31,3.9535046]
[1725610015902,3.8967,128.35,128.32,0.05246458]
[1725610016600,3.8968,128.34,128.32,0.05246458]
[1725610017590,3.94697936,128.34,128.32,0.05246458]
[1725610017793,0.05017936,128.34,128.32,0.05246458]
[1725610017992,0.05017936,128.34,128.33,29.97]
[1725610018400,0.05017936,128.34,128.33,33.8671]
[1725610018598,0.2866265,128.38,128.33,29.97]
[1725610018795,3.83406102,128.39,128.35,29.97]
[1725610018996,30.312,128.45,128.35,29.97]
[1725610018997,30.312,128.45,128.35,33.8664]
[1725610019199,0.28656203,128.44,128.35,29.97]
[1725610019393,29.97,128.43,128.34,29.97]
[1725610019610,0.28656203,128.42,128.37,0.05610419]
[1725610020401,3.8958,128.38,128.37,0.05610419]
[1725610020605,8.14106475,128.38,128.37,0.05610419]
[1725610020808,4.18237751,128.38,128.37,0.05610419]
[1725610021104,8.10444001,128.38,128.37,0.05610419]
[1725610021300,7.8178625,128.38,128.37,0.05610419]
[1725610022205,8.1044299,128.38,128.37,0.05610419]
[1725610023304,3.8967,128.35,128.29,4.2207]
[1725610023496,3.9220625,128.38,128.3,29.97]
[1725610023706,0.28663091,128.37,128.3,29.97]
[1725610023908,7.99984201,128.36,128.32,3.8974]
[1725610024107,7.7132111,128.36,128.32,3.8974]
[1725610024510,3.8964,128.36,128.33,0.05658941]
[1725610025202,7.75999053,128.36,128.33,0.05658941]
[1725610026005,3.92273874,128.36,128.33,0.05658941]
[1725610026200,0.28663076,128.35,128.33,0.05658941]
[1725610026609,3.8968,128.34,128.33,0.05658941]
[1725610026804,4.18343076,128.34,128.33,0.05658941]
[1725610028013,0.28663076,128.34,128.33,0.05658941]
[1725610028310,3.8967,128.35,128.33,0.05658941]
[1725610028506,0.05914821,128.36,128.33,33.92358941]
[1725610028705,0.34576784,128.36,128.33,33.92358941]
[1725610029111,0.34576784,128.36,128.34,3.8968]
[1725610029304,0.05914821,128.36,128.34,3.8968]
[1725610030307,0.05914821,128.36,128.33,0.05658941]
[1725610031412,3.8968,128.34,128.33,0.05658941]
[1725610031602,4.18343983,128.34,128.33,0.05658941]
[1725610032708,3.8968,128.34,128.33,0.05658941]
[1725610032914,4.1834653,128.34,128.33,0.05658941]
[1725610034915,3.8966,128.35,128.33,0.05658941]
[1725610035417,3.8968,128.34,128.33,0.05658941]
[1725610036511,4.18345738,128.34,128.33,0.05658941]
[1725610036712,3.8968,128.34,128.33,0.05658941]
[1725610036916,4.18346692,128.34,128.33,0.05658941]
[1725610037212,0.28666692,128.34,128.27,3.8988]
[1725610037411,0.28666692,128.33,128.27,3.8988]
[1725610037611,4.23638458,128.33,128.27,3.8988]
[1725610037811,3.8979,128.31,128.27,3.8988]
[1725610038417,3.8979,128.31,128.28,0.05188604]
[1725610040717,3.94971766,128.33,128.29,3.8983]
[1725610040915,0.28670122,128.32,128.29,3.8983]
[1725610041118,3.92849356,128.32,128.29,3.8983]
[1725610041320,3.92849356,128.32,128.29,3.95215883]
[1725610041618,29.97,128.36,128.29,3.95215883]
[1725610041823,0.28670036,128.35,128.29,3.95215883]
[1725610042019,4.10014323,128.35,128.29,3.95215883]
[1725610042222,0.28670036,128.34,128.29,3.95215883]
[1725610042719,29.97,128.39,128.29,30.02385883]
[1725610043022,29.97,128.39,128.33,0.04958812]
[1725610043023,0.2866563,128.38,128.33,0.04958812]
[1725610043223,4.23395215,128.38,128.33,0.04958812]
[1725610043416,0.2866563,128.37,128.33,0.04958812]
[1725610043615,3.8968,128.34,128.33,0.04958812]
[1725610043819,4.1834563,128.34,128.33,0.04958812]
[1725610045025,4.18347071,128.34,128.33,0.04958812]
[1725610046930,0.28667071,128.34,128.33,0.04958812]
[1725610047421,3.8968,128.34,128.33,0.04958812]
[1725610047629,4.18347071,128.34,128.33,0.04958812]
[1725610048224,4.18347071,128.34,128.25,29.97]
[1725610048225,30.25667071,128.34,128.25,29.97]
[1725610048418,0.28667071,128.33,128.25,29.97]
[1725610048621,0.28667071,128.33,128.24,2.6871]
[1725610048820,3.8978,128.31,128.26,3.899]
[1725610049220,0.05794033,128.3,128.27,0.05269249]
[1725610049518,0.05794033,128.3,128.27,3.95139249]
[1725610050034,0.05794033,128.3,128.27,0.05269249]
[1725610050331,3.94729585,128.38,128.29,29.97]
[1725610050525,3.94729585,128.38,128.28,29.97]
[1725610050526,4.18274907,128.37,128.31,29.97]
[1725610050722,0.28664907,128.36,128.33,29.97]
[1725610051024,0.28664907,128.35,128.33,29.97]
[1725610051232,3.8959,128.37,128.33,33.8669]
[1725610051430,0.34098831,128.36,128.34,0.05219565]
[1725610052322,4.23728831,128.36,128.34,0.05219565]
[1725610052625,3.95067683,128.36,128.34,0.05219565]
[1725610052831,3.8965,128.35,128.34,0.05219565]
[1725610053027,3.8965,128.35,128.2,70.97609963]
[1725610053028,30.2566265,128.35,128.2,70.97609963]
[1725610053336,3.8984,128.29,128.24,4.1433]
[1725610053527,3.94178086,128.28,128.24,4.1433]
[1725610053930,3.8988,128.28,128.24,8.043]
[1725610054131,0.05866949,128.27,128.25,0.05462403]
[1725610054630,0.05866949,128.27,128.25,3.95402403]
[1725610055924,0.05866949,128.27,128.25,0.05462403]
[1725610056144,0.34550635,128.27,128.25,0.05462403]
[1725610056841,0.28684203,128.26,128.25,0.05462403]
[1725610057134,0.28683427,128.26,128.25,0.05462403]
[1725610057724,0.34550376,128.27,128.25,0.05462403]
[1725610057929,4.18613427,128.26,128.25,0.05462403]
[1725610058247,4.22209854,128.26,128.18,2.717]
[1725610058436,3.9001,128.24,128.19,3.9013]
[1725610059126,0.34030824,128.23,128.2,0.05262271]
[1725610059532,0.34030824,128.23,128.2,3.95362271]
[1725610059730,0.05340323,128.23,128.2,3.95362271]
[1725610060340,0.05340323,128.23,128.21,3.9008]
[1725610063439,0.05340323,128.23,128.22,3.9005]
[1725610064633,0.28686229,128.25,128.2,0.05262271]
[1725610064835,3.93526427,128.26,128.2,37.49262271]
[1725610065036,143.27741882,128.3,128.2,37.49262271]
[1725610065037,3.8991,128.27,128.2,37.49262271]
[1725610065346,105.83741882,128.3,128.22,37.44]
[1725610065557,0.05484585,128.27,128.25,0.05636604]
[1725610065733,228.0,128.34,128.25,0.05636604]
[1725610065734,7.813,128.35,128.25,0.05636604]
[1725610066045,0.28678829,128.34,128.25,3.92994242]
[1725610066243,3.8979,128.31,128.25,3.92994242]
[1725610066440,0.28678829,128.3,128.27,3.899]
[1725610066734,0.34317728,128.3,128.27,3.95338351]
[1725610068130,0.34317728,128.3,128.27,0.05438351]
[1725610068533,4.24127728,128.3,128.27,0.05438351]
[1725610068734,3.95448899,128.3,128.27,0.05438351]
[1725610068936,0.57353459,128.29,128.27,0.05438351]
[1725610069134,0.28677006,128.29,128.27,0.05438351]
[1725610069537,0.28677006,128.29,128.27,3.95328351]
[1725610069738,0.28677006,128.29,128.27,0.05438351]
[1725610070145,3.95448899,128.3,128.27,0.05438351]
[1725610071151,0.28677375,128.29,128.27,0.05438351]
[1725610071359,0.05638899,128.3,128.27,0.05438351]
[1725610071858,0.05638899,128.3,128.28,3.8985]
[1725610072052,0.05638899,128.3,128.28,5.3324]
[1725610072259,0.05638899,128.3,128.29,3.8983]
[1725610072956,0.05638899,128.3,128.28,5.3324]
[1725610075555,0.05638899,128.3,128.29,3.8983]
[1725610079163,0.05638899,128.3,128.28,5.3324]
[1725610079658,0.05638899,128.3,128.27,0.05438351]
[1725610079857,7.813,128.33,128.22,1.3547]
[1725610079858,29.97,128.29,128.22,1.3547]
[1725610080059,0.28672359,128.28,128.22,5.3233638]
[1725610080359,3.8993,128.26,128.22,5.255]
[1725610080560,29.97,128.29,128.22,1.3547]
[1725610080763,0.05894541,128.27,128.24,3.95111788]
[1725610081464,3.95794541,128.27,128.24,0.05131788]
[1725610082057,0.05894541,128.27,128.24,0.05131788]
[1725610082464,3.8994,128.26,128.24,0.05131788]
[1725610084658,3.8996,128.25,128.24,0.05131788]
[1725610086860,8.07403418,128.25,128.24,0.05131788]
[1725610087377,4.18644818,128.25,128.24,0.05131788]
[1725610087562,0.05894541,128.27,128.24,0.05131788]
[1725610088062,0.05894541,128.27,128.24,3.95101788]
[1725610088263,0.3457605,128.27,128.24,3.95101788]
[1725610088470,0.3457605,128.27,128.24,0.05131788]
[1725610088667,0.05894541,128.27,128.24,0.05131788]
[1725610088979,0.28680851,128.3,128.24,37.49131788]
[1725610089175,0.28680851,128.3,128.23,2.8403]
[1725610089176,3.80603283,128.32,128.23,2.8403]
[1725610089471,0.28672547,128.31,128.28,3.8986]
[1725610089665,0.28672547,128.31,128.27,3.95452406]
[1725610089864,4.18462547,128.31,128.27,3.95452406]
[1725610090063,0.05733,128.3,128.28,0.05619974]
[1725610090671,7.813,128.35,128.28,0.05619974]
[1725610090971,0.28670859,128.34,128.28,0.05619974]
[1725610091171,11.7103,128.33,128.28,0.05619974]
[1725610091363,0.28670859,128.32,128.28,0.05619974]
[1725610091569,3.91033356,128.35,128.29,37.47]
[1725610091872,0.05850433,128.33,128.31,0.05900081]
[1725610092068,0.28665472,128.35,128.31,0.05009744]
[1725610092263,0.05029093,128.33,128.31,0.05009744]
[1725610092468,0.28665472,128.35,128.32,3.8973]
[1725610092777,3.8965,128.36,128.32,3.8973]
[1725610092960,46.72851906,128.5,128.33,37.47]
[1725610092961,374.47,128.44,128.33,37.47]
[1725610093161,0.28662923,128.42,128.32,37.47]
[1725610093365,3.95284392,128.38,128.36,0.05977457]
[1725610093571,4.22113917,128.37,128.36,0.05977457]
[1725610094078,8.11703917,128.37,128.36,0.05977457]
[1725610096772,8.11709352,128.37,128.36,0.05977457]
[1725610100873,8.11706314,128.37,128.36,0.05977457]
[1725610102372,4.22116314,128.37,128.36,0.05977457]
[1725610102971,0.2866532,128.37,128.36,0.05977457]
[1725610103177,0.05704392,128.38,128.36,0.05977457]
[1725610103579,0.05704392,128.38,128.36,3.95567457]
[1725610104586,0.05704392,128.38,128.36,0.05977457]
[1725610104984,0.3436462,128.38,128.36,0.05977457]
[1725610106378,0.28660228,128.37,128.36,3.95577457]
[1725610106581,0.05704392,128.38,128.36,3.95577457]
[1725610106883,0.05704392,128.38,128.36,0.05977457]
[1725610107487,0.3436462,128.38,128.36,0.05977457]
[1725610108890,0.05704392,128.38,128.36,0.05977457]
[1725610109092,0.34366092,128.38,128.36,0.05977457]
[1725610110383,4.23946092,128.38,128.36,0.05977457]
[1725610110584,0.286617,128.37,128.36,0.05977457]
[1725610110892,0.28660964,128.37,128.36,0.05977457]
[1725610111089,0.34365356,128.38,128.36,0.05977457]
[1725610111284,0.28660964,128.37,128.36,0.05977457]
[1725610111590,0.34365356,128.38,128.36,0.05977457]
[1725610111782,0.05704392,128.38,128.36,3.95597457]
[1725610112087,0.34364245,128.38,128.36,0.05977457]
[1725610112490,565.0,128.5,128.36,32.63877457]
[1725610112491,29.93,128.48,128.36,32.63877457]
[1725610112691,0.28649016,128.47,128.4,29.93]
[1725610112895,0.28649016,128.47,128.44,3.8937]
[1725610113096,0.28649016,128.47,128.42,33.79476344]
[1725610113300,0.28649016,128.47,128.43,2.7367]
[1725610113480,0.0375605,128.46,128.44,29.98158838]
[1725610113696,0.28638207,128.5,128.44,29.98158838]
[1725610113987,0.28638207,128.49,128.47,3.8927]
[1725610114191,3.8916,128.52,128.47,3.8927]
[1725610114383,0.28635697,128.51,128.47,3.8927]
[1725610114785,0.28635697,128.51,128.48,0.05570834]
[1725610114982,0.28635697,128.51,128.48,3.94820834]
[1725610115286,0.28635697,128.5,128.48,3.94820834]
[1725610115493,29.93,128.57,128.48,3.9502094]
[1725610115803,0.28635193,128.56,128.51,0.05050287]
[1725610116091,0.28635193,128.55,128.52,0.05711397]
[1725610116302,0.28628403,128.54,128.52,0.05952772]
[1725610116482,0.28628403,128.53,128.52,0.05952772]
[1725610116678,37.38,128.59,128.52,0.05952772]
[1725610116992,3.8905,128.55,128.52,0.05952772]
[1725610117295,0.28627233,128.54,128.52,0.05952772]
[1725610117495,3.84446271,128.54,128.52,0.05952772]
[1725610119280,0.28626297,128.53,128.52,0.05952772]
[1725610119491,3.85263828,128.53,128.51,0.05462589]
[1725610119792,4.19145846,128.52,128.51,0.05462589]
[1725610120195,0.28626297,128.52,128.51,0.05462589]
[1725610120790,3.8912,128.53,128.51,0.05462589]
[1725610121898,3.8914,128.52,128.51,0.05462589]
[1725610122190,4.17769697,128.52,128.51,0.05462589]
[1725610124292,0.28629697,128.52,128.51,0.05462589]
[1725610124494,3.81576599,128.54,128.51,0.05462589]
[1725610124687,0.28627484,128.53,128.51,0.05462589]
[1725610124882,7.77978447,128.53,128.51,0.05462589]
[1725610125090,3.8912,128.53,128.51,0.05462589]
[1725610125391,37.38,128.58,128.51,0.05462589]
[1725610125694,0.28628762,128.57,128.51,0.05462589]
[1725610127490,3.8914,128.52,128.51,0.05462589]
[1725610137899,3.8912,128.53,128.51,0.05462589]
[1725610138807,3.8914,128.52,128.51,0.05462589]
[1725610140497,37.6993,128.58,128.51,3.94622589]
[1725610140498,29.92,128.58,128.51,3.94622589]
[1725610140806,0.2862466,128.57,128.51,3.94622589]
[1725610141008,0.2862466,128.56,128.53,29.97784411]
[1725610141308,3.8899,128.57,128.53,29.97784411]
[1725610141506,0.28622837,128.56,128.53,29.97784411]
[1725610141707,4.17652837,128.56,128.53,0.05784411]
[1725610141907,3.8903,128.56,128.53,0.05784411]
[1725610142211,29.92,128.58,128.53,0.05784411]
[1725610142510,0.28623091,128.57,128.53,0.05784411]
[1725610143010,3.8908,128.54,128.53,0.05784411]
[1725610143208,7.74646744,128.54,128.53,0.05784411]
[1725610145212,8.03273005,128.54,128.53,0.05784411]
[1725610145512,8.03272767,128.54,128.53,0.05784411]
[1725610149513,8.03275092,128.54,128.53,0.05784411]
[1725610153415,8.03274228,128.54,128.53,0.05784411]
[1725610154822,0.28627484,128.54,128.53,0.05784411]
[1725610155027,31.1008,128.6,128.53,0.05784411]
[1725610155224,0.28622572,128.59,128.53,0.05784411]
[1725610155923,0.28622572,128.59,128.54,29.92]
[1725610156128,0.28622572,128.58,128.54,29.92]
[1725610156316,0.28622572,128.57,128.55,3.94309061]
[1725610156634,1.79308768,128.58,128.55,3.93988541]
[1725610156926,228.0,128.66,128.56,35.2391]
[1725610156927,3.8887,128.61,128.56,35.2391]
[1725610157124,0.28615705,128.6,128.57,0.04953313]
[1725610157314,3.8887,128.61,128.57,0.04953313]
[1725610157514,0.2861602,128.6,128.57,0.04953313]
[1725610158626,4.1751602,128.6,128.57,0.04953313]
[1725610158817,0.2861602,128.59,128.57,0.04953313]
[1725610159418,4.1754602,128.59,128.57,0.04953313]
[1725610159624,0.28615609,128.58,128.57,0.04953313]
[1725610160033,3.8896,128.58,128.57,0.04953313]
[1725610160223,4.17575609,128.58,128.57,0.04953313]
[1725610160426,8.15017971,128.58,128.57,0.04953313]
[1725610161433,8.15024004,128.58,128.57,0.04953313]
[1725610163233,34.18064004,128.58,128.46,77.35159479]
[1725610163527,29.92,128.55,128.47,1.3941]
[1725610163733,0.28621642,128.54,128.48,3.8924]
[1725610163928,7.85567102,128.53,128.48,3.8924]
[1725610164129,0.28626394,128.52,128.48,3.8924]
[1725610164332,0.04953314,128.52,128.5,0.05028273]
[1725610165026,0.04953314,128.52,128.5,3.94228273]
[1725610165527,0.04953314,128.52,128.5,3.94208273]
[1725610166125,0.04953314,128.52,128.5,0.05028273]
[1725610166929,0.04953314,128.52,128.5,3.94218273]
[1725610167235,3.8906,128.55,128.5,29.97028273]
[1725610167426,0.28623315,128.54,128.5,29.97028273]
[1725610167825,0.28623315,128.54,128.51,3.8914]
[1725610168031,3.8906,128.55,128.51,3.8914]
[1725610169637,7.80030015,128.56,128.52,3.8913]
[1725610169837,0.28620476,128.55,128.53,0.05614432]
[1725610170630,0.28620476,128.55,128.53,3.94704432]
[1725610170836,3.89,128.57,128.53,3.94704432]
[1725610171139,2.4824,128.62,128.54,29.92]
[1725610171140,29.92,128.61,128.54,29.92]
[1725610171346,3.8894,128.59,128.56,0.05844075]
[1725610171634,0.28616179,128.58,128.56,0.05844075]
[1725610172932,0.28616179,128.58,128.56,3.94854075]
[1725610173138,3.8891,128.6,128.56,3.94854075]
[1725610173339,0.28613016,128.59,128.56,0.05844075]
[1725610173539,0.28613016,128.58,128.56,0.05844075]
[1725610173729,29.92,128.63,128.56,0.05844075]
[1725610173933,0.28613011,128.62,128.56,0.05844075]
[1725610174432,3.8892,128.6,128.56,0.05844075]
[1725610174632,0.28613011,128.59,128.56,0.05844075]
[1725610175433,0.28613011,128.59,128.56,3.94864075]
[1725610176338,4.17543011,128.59,128.56,0.05844075]
[1725610176544,0.28613011,128.58,128.56,0.05844075]
[1725610177646,0.28614894,128.57,128.56,0.05844075]
[1725610178142,0.28614894,128.58,128.56,0.05844075]
[1725610178441,0.28614894,128.57,128.56,0.05844075]
[1725610178662,7.72697145,128.57,128.56,0.05844075]
[1725610178840,4.17604894,128.57,128.56,0.05844075]
[1725610179435,0.28614894,128.57,128.56,0.05844075]
[1725610181248,3.8894,128.59,128.56,0.05844075]
[1725610181543,31.3137,128.65,128.56,29.97844075]
[1725610181843,3.8889,128.61,128.59,0.04917502]
[1725610182034,0.2861284,128.6,128.59,0.04917502]
[1725610182349,4.1750284,128.6,128.59,0.04917502]
[1725610183242,0.28612796,128.6,128.59,0.04917502]
[1725610185247,0.28612796,128.61,128.59,0.04917502]
[1725610185451,0.28612796,128.6,128.59,0.04917502]
[1725610185848,0.28609853,128.64,128.59,0.04917502]
[1725610186039,0.28609853,128.63,128.59,0.04917502]
[1725610186246,3.8889,128.6,128.59,0.04917502]
[1725610186446,4.17499853,128.6,128.59,0.04917502]
[1725610188654,0.28609853,128.6,128.59,0.04917502]
[1725610189042,0.28609853,128.64,128.59,0.04917502]
[1725610189245,0.28609853,128.63,128.59,0.04917502]
[1725610189554,4.17449853,128.62,128.59,0.04917502]
[1725610189778,1.3937,128.65,128.59,0.04917502]
[1725610190045,0.2860952,128.64,128.59,29.96917502]
[1725610190244,4.1742952,128.63,128.59,33.85827502]
[1725610190444,0.2860952,128.62,128.59,33.85827502]
[1725610190640,0.2860952,128.62,128.6,3.8889]
[1725610190853,0.2860952,128.61,128.59,29.96917502]
[1725610191153,33.89845742,128.66,128.59,29.96917502]
[1725610191344,3.8882,128.63,128.59,33.85827502]
[1725610191545,0.28607766,128.62,128.59,33.85827502]
[1725610192247,0.28607766,128.62,128.59,0.04917502]
[1725610192453,0.28607766,128.61,128.59,0.04917502]
[1725610192753,0.28607766,128.6,128.59,0.04917502]
[1725610192952,0.28607766,128.61,128.59,0.04917502]
[1725610193141,0.28607766,128.6,128.59,0.04917502]
[1725610193347,0.28607766,128.61,128.59,0.04917502]
[1725610193847,0.28608186,128.6,128.59,0.04917502]
[1725610194051,0.28608186,128.61,128.59,0.04917502]
[1725610194253,0.28608186,128.6,128.59,0.04917502]
[1725610194454,0.28608186,128.61,128.59,0.04917502]
[1725610194651,3.8886,128.62,128.59,0.04917502]
[1725610194842,0.28607986,128.61,128.59,0.04917502]
[1725610195751,4.17477986,128.61,128.59,0.04917502]
[1725610195952,33.89845742,128.66,128.59,0.04917502]
[1725610196154,0.28607777,128.65,128.59,0.04917502]
[1725610196757,3.8885,128.62,128.59,0.04917502]
[1725610196957,0.28607777,128.61,128.59,0.04917502]
[1725610197152,3.8885,128.62,128.59,0.04917502]
[1725610199048,3.8885,128.62,128.59,3.93837502]
[1725610199652,3.8885,128.62,128.59,0.04917502]
[1725610200265,3.8887,128.61,128.59,0.04917502]
[1725610200659,33.89845742,128.66,128.59,0.04917502]
[1725610200660,3.8885,128.62,128.59,0.04917502]
[1725610201755,3.8887,128.61,128.59,0.04917502]
[1725610202357,3.8889,128.6,128.59,0.04917502]
[1725610203280,7.828846,128.6,128.59,0.04917502]
[1725610203459,3.8889,128.6,128.59,0.04917502]
[1725610204056,7.97629566,128.6,128.59,0.04917502]
[1725610204258,3.8889,128.6,128.59,0.04917502]
[1725610204458,7.69693169,128.62,128.59,0.04917502]
[1725610204657,38.8741,128.67,128.59,29.96917502]
[1725610204853,1.3538,128.68,128.62,0.05402013]
[1725610204854,0.28604844,128.66,128.62,0.05402013]
[1725610205054,8.12791559,128.65,128.62,0.05402013]
[1725610205255,0.28604844,128.64,128.62,0.05402013]
[1725610205856,0.28600551,128.63,128.62,0.05402013]
[1725610206156,0.28600551,128.63,128.62,3.94232013]
[1725610206157,0.28601651,128.63,128.62,3.94232013]
[1725610206356,1.3538,128.68,128.62,0.05402013]
[1725610206553,0.28598851,128.67,128.62,0.05402013]
[1725610207163,3.8876,128.65,128.62,0.05402013]
[1725610207360,0.28598851,128.64,128.62,0.05402013]
[1725610209961,3.888,128.63,128.62,0.05402013]
[1725610210166,4.17398851,128.63,128.62,0.05402013]
[1725610210862,0.28598851,128.63,128.62,0.05402013]
[1725610212466,3.8879,128.64,128.62,0.05402013]
[1725610213658,0.28601397,128.63,128.62,0.05402013]
[1725610214063,3.8873,128.66,128.62,3.94232013]
[1725610214266,1.3538,128.68,128.62,3.94232013]
[1725610214466,0.28596002,128.67,128.62,3.94232013]
[1725610214666,0.28596002,128.66,128.63,33.86066414]
[1725610215083,398.28988888,128.71,128.63,29.97266414]
[1725610215259,0.28594514,128.69,128.63,29.97266414]
[1725610215575,0.28594514,128.68,128.65,0.05563123]
[1725610215869,0.28594514,128.67,128.65,0.05563123]
[1725610216070,3.8867,128.68,128.65,0.05563123]
[1725610216467,0.28594308,128.67,128.65,0.05563123]
[1725610217280,368.36988888,128.71,128.65,0.05563123]
[1725610217281,0.28594308,128.66,128.65,0.05563123]
[1725610217476,0.28594308,128.66,128.56,1.3219]
[1725610217477,33.78840235,128.66,128.56,1.3219]
[1725610217674,33.78840235,128.66,128.57,31.2749]
[1725610217675,3.888,128.64,128.57,31.2749]
[1725610217863,0.28601557,128.63,128.59,3.8891]
[1725610218281,3.8885,128.62,128.57,31.2749]
[1725610218486,3.8885,128.62,128.54,1.3223]
[1725610218487,0.33820234,128.61,128.58,0.05732591]
[1725610218667,29.92,128.6,128.58,0.05732591]
[1725610218862,3.8898,128.58,128.51,32.6598]
[1725610219163,3.8898,128.58,128.52,3.8911]
[1725610219470,0.28613269,128.57,128.52,3.8911]
[1725610219671,0.28613269,128.57,128.51,32.6598]
[1725610219866,0.05323709,128.56,128.53,0.05055176]
[1725610220862,3.94353709,128.56,128.53,0.05055176]
[1725610222175,0.05323709,128.56,128.53,0.05055176]
[1725610225578,3.94363709,128.56,128.53,0.05055176]
[1725610226874,0.05323709,128.56,128.53,3.94155176]
[1725610227277,0.33939832,128.56,128.53,3.94155176]
[1725610227975,0.33939832,128.56,128.53,0.05055176]
[1725610228384,4.22969832,128.56,128.53,0.05055176]
[1725610228673,3.94353709,128.56,128.53,0.05055176]
[1725610230083,3.8906,128.55,128.53,0.05055176]
[1725610230478,0.05323709,128.56,128.53,0.05055176]
[1725610230479,3.8908,128.54,128.53,0.05055176]
[1725610230678,7.84107393,128.54,128.53,0.05055176]
[1725610231478,0.05323709,128.56,128.53,0.05055176]
[1725610232476,3.94353709,128.56,128.53,0.05055176]
[1725610233091,0.05323709,128.56,128.53,0.05055176]
[1725610233282,0.05323709,128.56,128.55,3.8905]
[1725610236089,0.05323709,128.56,128.55,33.8105]
[1725610236284,3.8895,128.59,128.56,3.8901]
[1725610236688,7.70614602,128.61,128.58,3.8895]
[1725610236878,0.28608875,128.6,128.57,29.92]
[1725610237091,29.92,128.65,128.54,5.23068574]
[1725610237092,0.4885,128.66,128.58,29.92]
[1725610237291,3.8882,128.63,128.59,3.8891]
[1725610237590,0.28606729,128.62,128.61,0.05226738]
[1725610237891,0.28606711,128.62,128.61,0.05226738]
[1725610238203,0.2860658,128.62,128.61,0.05226738]
[1725610239191,4.1743658,128.62,128.61,0.05226738]
[1725610240395,0.2860658,128.62,128.54,1.3043]
[1725610240898,3.8892,128.6,128.55,3.8904]
[1725610241095,0.2860658,128.59,128.55,3.8904]
[1725610241393,0.2860658,128.59,128.56,0.05621578]
[1725610241394,0.05888744,128.58,128.56,0.05621578]
[1725610241595,0.05888744,128.58,128.57,3.8899]
[1725610241799,0.05888744,128.58,128.57,33.8099]
[1725610242799,3.79948957,128.63,128.57,29.92]
[1725610243006,0.28603828,128.62,128.59,29.92]
[1725610243299,29.92,128.68,128.6,3.8888]
[1725610243502,3.8879,128.64,128.6,3.8888]
[1725610243697,4.17793848,128.63,128.6,3.8888]
[1725610244004,0.28602346,128.62,128.6,3.94362857]
[1725610244502,3.94405776,128.63,128.61,3.8885]
[1725610244698,3.94405776,128.63,128.6,0.05482857]
[1725610245097,3.94405776,128.63,128.6,3.94352857]
[1725610245598,3.94405776,128.63,128.6,0.05482857]
[1725610246711,0.05214274,128.63,128.61,29.92]
[1725610247299,0.05214274,128.63,128.62,3.8883]
[1725610248204,0.05214274,128.63,128.61,29.92]
[1725610248705,0.05214274,128.63,128.61,33.8084]
[1725610250110,0.05214274,128.63,128.61,29.92]
[1725610250501,3.94034274,128.63,128.6,3.94362857]
[1725610250699,0.05214274,128.63,128.6,0.05482857]
[1725610251205,3.8885,128.62,128.6,0.05482857]
[1725610253515,3.8886,128.61,128.6,0.05482857]
[1725610254008,4.17466155,128.61,128.6,0.05482857]
[1725610256412,3.8886,128.61,128.6,0.05482857]
[1725610256608,4.17464857,128.61,128.6,0.05482857]
[1725610257011,3.8886,128.61,128.6,0.05482857]
[1725610257210,3.8884,128.62,128.6,0.05482857]
[1725610257514,0.05214274,128.63,128.6,0.05482857]
[1725610258012,3.8886,128.61,128.6,0.05482857]
[1725610258216,4.17465777,128.61,128.6,0.05482857]
[1725610262315,3.89,128.57,128.54,4.0049]
[1725610262615,3.98375511,128.58,128.54,7.91860764]
[1725610262811,3.8894,128.59,128.55,3.8904]
[1725610263008,7.85719985,128.59,128.55,3.8904]
[1725610263209,0.05514953,128.58,128.56,0.05942982]
[1725610263913,0.05514953,128.58,128.57,3.8899]
[1725610265319,3.8888,128.61,128.57,3.8899]
[1725610266012,30.4083,128.65,128.56,29.92]
[1725610266013,0.28607566,128.6,128.56,3.89]
[1725610266220,0.05277903,128.59,128.57,0.04976308]
[1725610266515,0.05277903,128.59,128.57,0.05884314]
[1725610267514,3.95987252,128.59,128.57,0.05884314]
[1725610267814,0.28612349,128.58,128.57,0.05884314]
[1725610269312,4.17572349,128.58,128.57,0.05884314]
[1725610270324,4.17572197,128.58,128.57,0.05884314]
[1725610274225,3.8896,128.58,128.57,0.05884314]
[1725610274416,4.17574811,128.58,128.57,0.05884314]
[1725610275131,0.05277903,128.59,128.57,0.05884314]
[1725610275616,0.28609318,128.61,128.59,3.8891]